Cogmind - Beta 15 @@@ ROGUE MODE // 2025.08.25 @ 14:28:32 Player: Mogwok Wargfriend Result: Destroyed by Shrapnel Trap Performance ------------- Evolutions (0) 0 Regions Visited (2) 400 Robots Destroyed (33) 165 Value Destroyed (489) 489 Prototype IDs (0) 0 Alien Tech Used (0) 0 Bonus (0) 0 TOTAL SCORE: 1054 Bonus ------- None Cogmind --------- Core Integrity 0/250 Matter 290/300 Energy 249/250 System Corruption 0% Temperature Cool (0) Movement Rolling (140) Ox4 Location -10/Subcaves Parts ------- > --- POWER (1) -------- Ion Engine > --- PROPULSION (2) --- Light Treads Wheel > --- UTILITY (2) ------ High-capacity Storage Unit Targeting Computer > --- WEAPON (2) ------- Medium Laser Battle Cannon > --- INVENTORY (20) --- Ion Engine Light Ion Engine Light Treads Light Treads Aluminum Leg Wheel Wheel Wheel Subdweller Monowheel High-capacity Matter Pod (200) Subdweller Optics Improved Terrain Scanner Hacking Suite Subdweller Beam Cannon Assault Rifle Light Cannon Light Cannon Light Cannon Grenade Launcher Mining Laser Peak State ------------ > --- POWER ------------ Ion Engine > --- PROPULSION ------- Light Treads Wheel > --- UTILITY ---------- High-capacity Storage Unit Targeting Computer > --- WEAPON ----------- Medium Laser Battle Cannon > --- INVENTORY -------- Ion Engine Light Ion Engine Light Treads Light Treads Aluminum Leg Wheel Wheel Wheel Subdweller Monowheel High-capacity Matter Pod Subdweller Optics Improved Terrain Scanner Hacking Suite Subdweller Beam Cannon Assault Rifle Light Cannon Light Cannon Light Cannon Grenade Launcher Mining Laser [Rating: 10] Favorites ----------- Power Ion Engine Engine Ion Engine Propulsion Light Treads Treads Light Treads Wheel Compact Wheel Utility Targeting Computer Device Seismic Detector Storage Small Storage Unit Processor Targeting Computer Weapon Light Cannon Energy Gun Medium Laser Ballistic Gun Light Assault Rifle Ballistic Cannon Light Cannon Launcher Grenade Launcher Build | -11 -10 -10 ------- Run | Yrd Mat Sub Slots Evolved . | . . . Power . | . . . Propulsion . | . . . Utility . | . . . Weapon . | . . . Parts Attached 24 | 7 13 4 Power 3 | 1 1 1 Engine 3 | 1 1 1 Core . | . . . Reactor . | . . . Propulsion 7 | 2 4 1 Treads 2 | 1 1 . Leg . | . . . Wheel 5 | 1 3 1 Hover . | . . . Flight . | . . . Utility 5 | 2 3 . Device 1 | 1 . . Storage 3 | 1 2 . Processor 1 | . 1 . Hackware . | . . . Protection . | . . . Artifact . | . . . Weapon 9 | 2 5 2 Energy Gun 3 | 1 2 . Energy Cannon . | . . . Ballistic Gun 1 | 1 . . Ballistic Cannon 4 | . 2 2 Launcher 1 | . 1 . Special Weapon . | . . . Impact Weapon . | . . . Slashing Weapon . | . . . Piercing Weapon . | . . . Special Melee Weapon . | . . . Unidentified Prototypes . | . . . Parts Lost 3 | . 2 1 Power 1 | . 1 . Propulsion 1 | . 1 . Utility . | . . . Weapon 1 | . . 1 Highest Loss Streak 1 | . 1 1 To Critical Strikes 1 | . . 1 Average Backups 11 | 5 11 19 Power 1 | . 1 2 Propulsion 3 | 2 3 7 Utility 2 | . 2 3 Weapon 4 | 1 4 6 Tool/Special . | . . . Unused Backups 22 | 1 3 18 Power 2 | . 1 1 Propulsion 8 | 1 . 7 Utility 5 | . 1 4 Weapon 7 | . 1 6 Tool/Special . | . . . Average Slot Usage (%) 99 | . 99 100 Engine 13 | . 13 14 Treads 14 | . 14 14 Wheel 14 | . 14 14 Storage 14 | . 14 14 Processor 13 | . 12 14 Energy Gun 14 | . 14 14 Ballistic Gun 1 | . 1 . Ballistic Cannon 12 | . 12 14 Peak Build Rating 10 | 8 9 10 Average Rating 7 | 6 7 9 On Entrance 5 | . 8 9 Naked Turns . | . . . Heaviest Build 50 | 13 50 50 Greatest Support 16 | 16 16 16 Greatest Overweight (x) 4 | 1 3 4 Average Overweight (x) 1 | . . 3 Largest Inventory Capacity 20 | 8 20 20 Average Capacity 12 | 7 12 20 Most Carried 20 | 8 20 20 Average Carried 11 | 5 11 19 Final Capacity 20 | 8 20 20 Final Carried 20 | 8 20 20 Class Distribution -------------------- 100% | Mutant Dominant Class ---------------- Mutant | -10/Materials Mutant | -10/Subcaves Resources | -11 -10 -10 ----------- Run | Yrd Mat Sub Matter Collected 999 | 336 577 86 Remotely . | . . . Salvage Created 708 | 184 506 18 Parts 67 | 18 47 2 Haulers Intercepted 2 | . 2 . Recyclers Shooed 2 | . 2 . Parts Field Recycled . | . . . Retrieved Matter . | . . . Parts Self-Destructed 3 | . . 3 Prevented . | . . . Kills | -11 -10 -10 ------- Run | Yrd Mat Sub Combat Hostiles Destroyed 13 | . 12 1 Guns 2 | . 1 1 Cannons 8 | . 8 . AOE 3 | . 3 . Classes Destroyed 10 | 3 6 1 Worker 7 | 2 5 . Builder 1 | . 1 . Tunneler 3 | 3 . . Hauler 2 | . 2 . Recycler 3 | 1 2 . Operator 1 | . 1 . Watcher 3 | . 3 . Swarmer 6 | . 6 . Grunt 6 | . 6 . Subdweller 1 | . . 1 Best Kill Streak 14 | 3 14 1 Combat Bots Only 3 | . 3 1 Max Kills in Single Turn 2 | 1 2 1 Gunslinging . | . . . Exploded 2 | . 2 . Melee . | . . . Uniques/NPCs Destroyed . | . . . Combat | -11 -10 -10 -------- Run | Yrd Mat Sub Hostile Shots Fired 99 | . 77 22 Missed 28 | . 19 9 Hits 71 | . 58 13 Projectile 71 | . 58 13 Critical Strikes 3 | . 1 2 Damage Taken 1084 | . 712 372 Core 263 | . 165 98 Absorbed by Shields . | . . . Core Remaining (%) 100 | 100 . . Volleys Fired 92 | 16 68 8 Largest 2 | 2 2 2 Hottest 80 | 60 80 80 Shots Fired 176 | 32 128 16 Gun 100 | 32 60 8 Cannon 73 | . 65 8 Launcher 3 | . 3 . Special . | . . . Kinetic 89 | 16 65 8 Thermal 84 | 16 60 8 Explosive 3 | . 3 . Electromagnetic . | . . . Robot Hit Streak 10 | 8 10 9 Robot Miss Streak 5 | 2 5 2 Penetration Max . | . . . Secondary Targets . | . . . Shots Hit Robots 109 | 20 77 12 Core Hits 52 | 8 41 3 Critical Kills . | . . . Critical Parts Destroyed . | . . . Critical Strikes 4 | . 3 1 Burn 1 | . . 1 Blast 3 | . 3 . Melee Attacks . | . . . Impact . | . . . Slashing . | . . . Piercing . | . . . Sneak Attacks . | . . . Combat Hostiles . | . . . Follow-up Attacks . | . . . Damage Inflicted 1753 | 188 1405 160 Guns 685 | 188 423 74 Cannons 836 | . 750 86 Explosions 232 | . 232 . Melee . | . . . Ramming . | . . . Kinetic 885 | 49 750 86 Thermal 636 | 139 423 74 Explosive 232 | . 232 . Electromagnetic . | . . . Impact . | . . . Slashing . | . . . Piercing . | . . . Highest Corruption . | . . . Average Corruption . | . . . Corruption Purged . | . . . Corruption Blocked . | . . . Overload Shots . | . . . Overflow Damage 14 | . 14 . Projectiles 9 | . 9 . Explosions 5 | . 5 . Melee . | . . . Knockbacks 15 | . 11 4 Impact . | . . . Kinetic 15 | . 11 4 Secondary . | . . . Self-Inflicted Damage . | . . . Shots . | . . . Rammed . | . . . Targets Rammed . | . . . Kicked . | . . . Crushed . | . . . Highest Temperature 312 | 60 312 . Average Temperature 54 | 25 59 . Received Heat Transfer 372 | . 309 63 Effects 2 | . 2 . Interference 2 | . 2 . Siege Activations . | . . . Martial Activations . | . . . Shielding Activations . | . . . Robots Disrupted . | . . . Combat Hostiles . | . . . Robots Corrupted . | . . . Combat Hostiles . | . . . Parts Fried . | . . . Impact Corruptions . | . . . Robots Melted . | . . . Combat Hostiles . | . . . Parts Melted 1 | . 1 . Heat Transferred 1689 | 325 1068 296 Parts Sabotaged . | . . . Parts Stolen . | . . . Parts Stripped . | . . . Power Chain Reactions . | . . . Alert | -11 -10 -10 ------- Run | Yrd Mat Sub Maximum Alert Level 1 | . 1 . Low Security (%) 78 | 100 75 . Level 1 21 | . 24 . Level 2 . | . . . Level 3 . | . . . Level 4 . | . . . Level 5 . | . . . High Security . | . . . Max Security . | . . . Peak Influence 274 | 15 274 . Initial . | . . . Average 113 | 1 125 . Influence Increases 488 | 30 458 . Destroy 0b10 Robot/C 240 | . 240 . Destroy 0b10 Robot/NC 100 | 30 70 . Destroy Leader 50 | . 50 . Successful Hack 9 | . 9 . Disable Machine 60 | . 60 . Destroy Structure 14 | . 14 . Lose Combat Pursuer 15 | . 15 . Influence Decreases 488 | 30 374 84 Entered New Map 41 | . . 41 Time Decay 417 | 30 354 33 Lost Part 30 | . 20 10 Squads Dispatched 2 | . 2 . Investigation 1 | . 1 . Extermination . | . . . Reinforcement 1 | . 1 . Assault . | . . . Garrison . | . . . Intercept . | . . . Searches Triggered . | . . . Construction Impeded . | . . . Haulers Reinforced . | . . . Active Scanning Responses . | . . . Cargo Convoy Interrupts . | . . . Stealth | -11 -10 -10 --------- Run | Yrd Mat Sub Distress Signals 1 | . 1 . Communications Jammed . | . . . Distress Signals . | . . . Times Spotted 21 | . 19 2 Peak Tracking Total 3 | . 3 2 Tactical Retreats 1 | . 1 . Traps | -11 -10 -10 ------- Run | Yrd Mat Sub Traps Triggered 3 | . 2 1 Indirectly . | . . . Trap Hack Attempts . | . . . Triggered . | . . . Disarmed . | . . . Reprogrammed . | . . . Reused . | . . . Traps Extracted . | . . . Installed . | . . . Triggered . | . . . Machines | -11 -10 -10 ---------- Run | Yrd Mat Sub Machines Disabled 4 | . 4 . Max in Single Turn 1 | . 1 . Machines Repaired . | . . . Machines Dismantled . | . . . Machines Sabotaged . | . . . Overloaded Fab Kills . | . . . Hacking | -11 -10 -10 --------- Run | Yrd Mat Sub Machines Accessed 7 | . 7 . Terminals 5 | . 5 . Fabricators . | . . . Repair Stations . | . . . Recycling Units 2 | . 2 . Scanalyzers . | . . . Garrison Access . | . . . Total Hacks 24 | . 24 . Successful 12 | . 12 . Failed 12 | . 12 . Catastrophic 1 | . 1 . Database Lockouts . | . . . Manual 17 | . 17 . Terminals 17 | . 17 . Fabricators . | . . . Repair Stations . | . . . Recycling Units 7 | . 7 . Scanalyzers . | . . . Garrison Access . | . . . Terminal Hacks 2 | . 2 . Robot Analysis 2 | . 2 . Fabricator Hacks . | . . . Repair Station Hacks . | . . . Recycling Unit Hacks 5 | . 5 . Recycle Component 1 | . 1 . Process 1 | . 1 . Report Inventory 2 | . 2 . Retrieve Matter 1 | . 1 . Scanalyzer . | . . . Garrison Access Hacks . | . . . Unauthorized Hacks 5 | . 5 . Terminals 3 | . 3 . Botnet 3 | . 3 . Fabricators . | . . . Repair Stations . | . . . Recycling Units 2 | . 2 . Reject 2 | . 2 . Scanalyzers . | . . . Garrison Access . | . . . Data Cores Recovered . | . . . Used . | . . . Hacking Detections 6 | . 6 . Full Trace Events . | . . . Feedback Events . | . . . Feedback Blocked . | . . . Robot Schematics Acquired . | . . . Robots Built . | . . . Authchips . | . . . Time . | . . . Total Robot Build Rating . | . . . Part Schematics Acquired . | . . . Parts Built . | . . . Authchips . | . . . Time . | . . . Total Part Build Rating . | . . . Parts Repaired . | . . . Time . | . . . Parts Recycled 1 | . 1 . Recycled Matter 14 | . 14 . Retrieved Matter 14 | . 14 . Retrieved Components . | . . . Parts Scanalyzed . | . . . Part Schematics Acquired . | . . . Parts Damaged . | . . . Bothacking | -11 -10 -10 ------------ Run | Yrd Mat Sub Used RIF Installer . | . . . Robots Hacked . | . . . Non-combat . | . . . Combat . | . . . Robot Hacks Applied . | . . . Relay Couplers Released . | . . . Fabnet Peak Effective % . | . . . Robots Rewired . | . . . Allies Hacked . | . . . Hacks Repelled . | . . . Allies | -11 -10 -10 -------- Run | Yrd Mat Sub Total Allies . | . . . Largest Group . | . . . Highest-Rated Group . | . . . Highest-Rated Ally . | . . . Total Orders . | . . . Ally Attacks . | . . . Total Damage . | . . . Kills . | . . . Allies Corrupted . | . . . Allies Melted . | . . . Intel | -11 -10 -10 ------- Run | Yrd Mat Sub Active Infowar (turns) 174 | 75 99 . Seismic 174 | 75 99 . Robot Analysis Total 2 | . 2 . Derelict Logs Recovered . | . . . Drone Launches . | . . . Drone Recoveries . | . . . Exploration | -11 -10 -10 ------------- Run | Yrd Mat Sub Turns Passed 1693 | 143 1346 204 Spaces Moved 1175 | 79 978 118 Core 8 | 8 . . Treads . | . . . Legs . | . . . Wheels 1167 | 71 978 118 Hover . | . . . Flight . | . . . Fastest Speed 50 | 50 95 130 Average Speed 111 | 99 109 140 Slowest Speed 145 | 100 145 145 Overloaded Moves . | . . . Propulsion Burnouts . | . . . Robots Hopped . | . . . Potential Cave-ins . | . . . Cave-ins Triggered . | . . . Exploration Rate (%) 38 | 4 100 11 Regions Visited 2 Branch Regions 1 Pre-discovered Areas . | . . . Known Exits Taken . | . . . Unknown Exits Taken 2 | 1 1 . Scrap Searched . | . . . Spaces Dug 5 | . 5 . Terrain Destroyed 17 | . 17 . Melee . | . . . Projectile . | . . . AOE 17 | . 17 . Terrain Rammed . | . . . Walls Destroyed . | . . . Machines Disabled . | . . . Actions | -11 -10 -10 --------- Run | Yrd Mat Sub Total 1389 | 111 1135 143 Wait 45 | . 41 4 Move 1173 | 78 977 118 Hop . | . . . Pick Up 33 | 9 20 4 Fast Attach 9 | 7 2 . Attach 4 | . 2 2 Detach 1 | . . 1 Swap 12 | . 10 2 Drop 20 | 1 15 4 Fire 92 | 16 68 8 Melee . | . . . Ram . | . . . Kick . | . . . Crush . | . . . Escape Stasis . | . . . Rewire . | . . . Trap . | . . . Miscellaneous . | . . . Route ------- -11/Scrapyard -10/Materials (discovered 5 exits: [*Mat x3] / [*Min] / [*Sub]) -10/Subcaves History --------- Turn | Location | Event 60 | -11/Scrapyard | Discovered new exit (range 16) 144 | -11/Scrapyard | Entered Materials 301 | -10/Materials | Discovered new exit (range 9) 308 | -10/Materials | Build established: Mutant 580 | -10/Materials | Discovered new exit (range 15) 816 | -10/Materials | Core integrity fell below 50% 969 | -10/Materials | Discovered new exit (range 16) 1172 | -10/Materials | Discovered new exit (range 16) 1327 | -10/Materials | Discovered new exit (range 9) 1490 | -10/Materials | Entered Subcaves 1491 | -10/Subcaves | Ambushed by Subdwellers from Twisted Machinery 1491 | -10/Subcaves | Approached by a straggling Scientist 1521 | -10/Subcaves | Core integrity fell below 20% 1636 | -10/Subcaves | Shifting Twisted Machinery released Battle Cannon 1646 | -10/Subcaves | Shifting Twisted Machinery released Sub. Optics 1694 | -10/Subcaves | Destroyed by Shrapnel Trap Last Messages --------------- 01555_ Subatomizers dissect the Machine Analyzer. 01555_ Acquired Wheel. 01556_ Acquired 22 matter. 01570_ Subatomizers dissect the Machine Analyzer. 01572_ Dropped Com. Wheel. 01573_ Acquired Sub. Beam Cannon. 01576_ Dropped Com. Wheel. 01577_ Acquired Sub. Optics. 01582_ Acquired 18 matter. 01625_ Acquired 15 matter. Battle Cannon falls loose from the Twisted Machinery. Sub. Optics falls loose from the Twisted Machinery. 01653_ Dropped Lgt. Cannon. 01694_ Triggered Shrapnel Trap. 01694_ An expanding cloud of shrapnel blasts out in all directions. Map ----- +----------------------------------------------------+ | ?????????????????????????????##??????## ##???????? | | ?????????????????????????????# ???????## #???????? | | ?????????????????????????????# ??????# #???????? | | ????????????????????????###??# #?????# "#???????? | | ???????????????????????## ## ####?# ###?????? | | ??????????????????????? ### "" ##????? | | ??????????????????????????# " #????? | | ??????????????????????????????# ""####????? | | ?????????????????????????? #??# !"" """#???????? | | ?????????????????????????? ### " """" #???????? | | ??????????????????????????? ###### "]" ##??????? | | ??????????????????????????? ##??# ##?????? | | ???????????????????????????# "#### ## #?????? | | ?????????????????#?????????# ""## #### #?????? | | ??????????????#??# ???????## #?# ##????? | | ?????????????? ## ?????## ### #????? | | ??????????????? #???## ## #????? | | ????????????????? #??# ## #????? | | ??????????????????# #?# ## ### ##????? | | ??????????????????## ### ## #?# ##?????? | | ??????????????????# $ # ### ##??????? | | ?????????????# #???????? | | ????????????# ## #???????? | | ??????????? ??????## ### #???????? | | ???????????????????????# #### #???????? | | ???????????????????????# @ #?# #???????? | | ??????????????????????# ### ##???????? | | ?????????????????????# #?# #????????? | | ????????????????????# ?# ^ #???????? | | ????????????????????#### ?# ########???????? | | ???????????????????????## ?## ##??????????????? | | ????????????????????????## ??#####???????????????? | | ??????????????????????????# ?????????????????????? | | ???????????????????????????#?????????????????????? | | ?????????????????????????????????????????????????? | | ?????????????????????????????????????????????????? | | ?????????????????????????????????????????????????? | | ?????????????????????????????????????????????????? | | ?????????????????????????????????????????????????? | | ?????????????????????????????????????????????????? | | ?????????????????????????????????????????????????? | | ?????????????????????????????????????????????????? | | ?????????????????????????????????????????????????? | | ?????????????????????????????????????????????????? | | ?????????????????????????????????????????????????? | | ?????????????????????????????????????????????????? | | ?????????????????????????????????????????????????? | | ?????????????????????????????????????????????????? | | ?????????????????????????????????????????????????? | | | +----------------------------------------------------+ Best States ------------- Heat Dissipation 25 Energy Generation 10 Energy Capacity 250 Matter Stores 300 Matter Capacity 300 Sight Range 16 Terrain Scan Density 10 Evasion (%) 41 Targeting Accuracy 5 Item Schematics ----------------- None Robot Schematics ------------------ None Fabricated ------------ Nothing Repaired ---------- Nothing Alien Tech Used ----------------- None Achievements -------------- None Challenges ------------ None Game ------ Seed LaserXenonStick Manual? 0 Play Time 00:16:43 Cumulative 345.8 hours Start 2025.08.25 @ 01:02:40 End 2025.08.25 @ 14:28:32 Sessions 3 Manual Loads 0 Difficulty Rogue Special Mode None Game No. 293 Rogue 293 Adventurer 0 Explorer 0 Win Type - Total 2 Types 2/0/0/0/0/0/0/0/0/0 Lore% 75 Gallery% 68 Achievement% 53 Wizard Run 0 Options --------- Layout 2 ASCII 1 Keyboard 1 Movement Numpad Keybinds 0 Fullscreen 2 Font 32/TamsynBold Map View 50x44 Zoom Use 0% Tactical HUD 1 Map Filters NONE Filters NONE Steam 1 RUN: 97aed849-84cb-4a37-957a-1b55c2d14937